[Event "2026 European Womens Championship"]
[Site "Batumi, GE"]
[Date "2026.05.26"]
[Round "2"]
[White "Arabidze, Meri"]
[Black "Zeliantsova, Kseniya"]
[Result "1-0"]
[Board "34"]
[TimeControl "5400+30"]
[WhiteFideId "13604040"]
[BlackFideId "13512617"]
[WhiteElo "2409"]
[BlackElo "2176"]
[WhiteTitle "IM"]
[BlackTitle "WFM"]
[WhiteClock "0:46:48"]
[BlackClock "0:16:55"]
[Variant "Standard"]

1. d4 {[%clk 1:30:56]}  Nf6 {[%clk 1:30:52]} 2. c4 {[%clk 1:31:22]}  g6 {[%clk 1:31:16]} 3. g3 {[%clk 1:31:49]}  Bg7 {[%clk 1:31:40]}
4. Bg2 {[%clk 1:32:16]}  d6 {[%clk 1:32:02]} 5. Nf3 {[%clk 1:32:34]}  O-O {[%clk 1:32:17]} 6. Nc3 {[%clk 1:32:59]}  Nbd7 {[%clk 1:32:39]}
7. O-O {[%clk 1:33:19]}  e5 {[%clk 1:32:53]} 8. e4 {[%clk 1:33:45]}  exd4 {[%clk 1:32:55]} 9. Nxd4 {[%clk 1:34:09]}  Re8 {[%clk 1:33:20]}
10. Qc2 {[%clk 1:34:25]}  Nxe4 {[%clk 1:31:24]} 11. Nxe4 {[%clk 1:34:38]}  Bxd4 {[%clk 1:31:48]} 12. Bg5 {[%clk 1:34:43]}  f6 {[%clk 1:32:05]}
13. Rad1 {[%clk 1:34:57]}  fxg5 {[%clk 1:30:50]} 14. Rxd4 {[%clk 1:35:22]}  Qe7 {[%clk 1:17:40]} 15. Re1 {[%clk 1:35:01]}  Nf8 {[%clk 1:06:27]}
16. Rd3 {[%clk 1:35:17]}  Bf5 {[%clk 1:02:51]} 17. Rde3 {[%clk 1:35:34]}  Qf7 {[%clk 0:55:04]} 18. Qe2 {[%clk 1:18:37]}  Bd7 {[%clk 0:41:53]}
19. Nxg5 {[%clk 1:00:05]}  Rxe3 {[%clk 0:37:49]} 20. Qxe3 {[%clk 0:59:50]}  Qxc4 {[%clk 0:36:50]} 21. b3 {[%clk 0:50:09]}  Qb5 {[%clk 0:31:21]}
22. Qf4 {[%clk 0:48:21]}  Bf5 {[%clk 0:16:55]} 23. Qd4 {[%clk 0:46:48]} 1-0

[Event "2026 European Womens Championship"]
[Site "Batumi, GE"]
[Date "2026.05.26"]
[Round "2"]
[White "Salimova, Nurgyul"]
[Black "Starosta, Martyna"]
[Result "1-0"]
[Board "35"]
[TimeControl "5400+30"]
[WhiteFideId "2915138"]
[BlackFideId "21818754"]
[WhiteElo "2404"]
[BlackElo "2175"]
[WhiteTitle "IM"]
[BlackTitle "WIM"]
[WhiteClock "0:05:15"]
[BlackClock "0:02:46"]
[Variant "Standard"]

1. Nf3 {[%clk 1:29:16]}  d5 {[%clk 1:30:54]} 2. e3 {[%clk 1:28:58]}  c5 {[%clk 1:25:54]} 3. b3 {[%clk 1:28:02]}  f6 {[%clk 1:24:14]}
4. d4 {[%clk 1:27:38]}  cxd4 {[%clk 1:23:23]} 5. Bb5+ {[%clk 1:25:51]}  Kf7 {[%clk 1:14:43]} 6. O-O {[%clk 1:23:45]}  e5 {[%clk 1:11:16]}
7. exd4 {[%clk 0:57:06]}  e4 {[%clk 1:11:19]} 8. Ne1 {[%clk 0:55:02]}  Bd6 {[%clk 1:06:43]} 9. f3 {[%clk 0:50:51]}  Qb6 {[%clk 1:01:20]}
10. c4 {[%clk 0:46:45]}  e3 {[%clk 0:52:34]} 11. Bxe3 {[%clk 0:37:28]}  Ne7 {[%clk 0:44:35]} 12. Nc3 {[%clk 0:33:09]}  Bb4 {[%clk 0:39:48]}
13. Ne2 {[%clk 0:28:41]}  a6 {[%clk 0:37:25]} 14. Ba4 {[%clk 0:28:00]}  Qa5 {[%clk 0:27:24]} 15. c5 {[%clk 0:24:01]}  Nf5 {[%clk 0:19:13]}
16. Bf2 {[%clk 0:23:25]}  b5 {[%clk 0:15:55]} 17. cxb6 {[%clk 0:23:09]}  Qxb6 {[%clk 0:16:01]} 18. Nd3 {[%clk 0:22:49]}  Bd6 {[%clk 0:15:23]}
19. Rc1 {[%clk 0:22:30]}  Bd7 {[%clk 0:14:13]} 20. Nc3 {[%clk 0:18:39]}  Qb7 {[%clk 0:13:21]} 21. Nc5 {[%clk 0:18:13]}  Bxc5 {[%clk 0:13:25]}
22. dxc5 {[%clk 0:18:39]}  Rd8 {[%clk 0:12:36]} 23. Bxd7 {[%clk 0:13:41]}  Qxd7 {[%clk 0:12:28]} 24. Na4 {[%clk 0:13:35]}  Qc6 {[%clk 0:12:38]}
25. Nb6 {[%clk 0:13:32]}  Ra7 {[%clk 0:13:03]} 26. Nc4 {[%clk 0:12:58]}  d4 {[%clk 0:12:00]} 27. Re1 {[%clk 0:06:37]}  Kg8 {[%clk 0:09:47]}
28. Qd3 {[%clk 0:06:14]}  g6 {[%clk 0:06:53]} 29. g4 {[%clk 0:06:33]}  Qxc5 {[%clk 0:05:55]} 30. gxf5 {[%clk 0:06:32]}  gxf5 {[%clk 0:02:46]}
31. Ne3 {[%clk 0:05:15]} 1-0

[Event "2026 European Womens Championship"]
[Site "Batumi, GE"]
[Date "2026.05.26"]
[Round "2"]
[White "Khurtsilava, Inga"]
[Black "Buksa, Nataliya"]
[Result "0-1"]
[Board "36"]
[TimeControl "5400+30"]
[WhiteFideId "13600419"]
[BlackFideId "14123622"]
[WhiteElo "2175"]
[BlackElo "2392"]
[WhiteTitle "WGM"]
[BlackTitle "IM"]
[WhiteClock "0:31:18"]
[BlackClock "0:48:56"]
[Variant "Standard"]

1. d4 {[%clk 1:30:58]}  d5 {[%clk 1:30:35]} 2. Nf3 {[%clk 1:31:23]}  Nf6 {[%clk 1:30:18]} 3. e3 {[%clk 1:31:43]}  c5 {[%clk 1:30:21]}
4. Nbd2 {[%clk 1:31:14]}  Nc6 {[%clk 1:29:39]} 5. a3 {[%clk 1:27:51]}  cxd4 {[%clk 1:29:06]} 6. exd4 {[%clk 1:28:13]}  Bf5 {[%clk 1:29:17]}
7. c3 {[%clk 1:27:42]}  e6 {[%clk 1:26:49]} 8. Bb5 {[%clk 1:25:53]}  Bd6 {[%clk 1:24:50]} 9. Nf1 {[%clk 1:20:56]}  h6 {[%clk 1:16:56]}
10. Ng3 {[%clk 1:20:02]}  Bh7 {[%clk 1:16:43]} 11. Ne5 {[%clk 1:17:41]}  Qb6 {[%clk 1:13:08]} 12. a4 {[%clk 1:07:35]}  a6 {[%clk 1:08:16]}
13. Bxc6+ {[%clk 1:01:58]}  bxc6 {[%clk 1:08:43]} 14. Nh5 {[%clk 1:01:20]}  Nxh5 {[%clk 0:57:06]} 15. Qxh5 {[%clk 1:01:27]}  Qc7 {[%clk 0:50:55]}
16. a5 {[%clk 0:57:34]}  c5 {[%clk 0:50:07]} 17. Be3 {[%clk 0:41:04]}  Rb8 {[%clk 0:46:48]} 18. O-O {[%clk 0:39:15]}  Rxb2 {[%clk 0:45:27]}
19. Bf4 {[%clk 0:38:28]}  O-O {[%clk 0:33:11]} 20. dxc5 {[%clk 0:37:28]}  Bxe5 {[%clk 0:33:29]} 21. Bxe5 {[%clk 0:35:45]}  Qxc5 {[%clk 0:33:08]}
22. Qg4 {[%clk 0:34:45]}  Bg6 {[%clk 0:33:33]} 23. h4 {[%clk 0:32:08]}  h5 {[%clk 0:33:29]} 24. Qg3 {[%clk 0:30:16]}  Re8 {[%clk 0:32:13]}
25. Rfe1 {[%clk 0:28:09]}  Kh7 {[%clk 0:30:55]} 26. Bd4 {[%clk 0:28:08]}  Qc4 {[%clk 0:31:12]} 27. f4 {[%clk 0:27:06]}  f6 {[%clk 0:30:35]}
28. Qf3 {[%clk 0:26:31]}  Kh6 {[%clk 0:28:19]} 29. Qf1 {[%clk 0:21:39]}  Bd3 {[%clk 0:25:20]} 30. Qf3 {[%clk 0:21:57]}  Be4 {[%clk 0:25:21]}
31. Rxe4 {[%clk 0:22:04]}  dxe4 {[%clk 0:25:47]} 32. Qxe4 {[%clk 0:22:31]}  Qd5 {[%clk 0:26:00]} 33. Re1 {[%clk 0:21:59]}  Qxe4 {[%clk 0:26:15]}
34. Rxe4 {[%clk 0:22:27]}  Kg6 {[%clk 0:26:10]} 35. Bb6 {[%clk 0:19:24]}  Kf5 {[%clk 0:26:00]} 36. Rc4 {[%clk 0:18:37]}  e5 {[%clk 0:25:39]}
37. fxe5 {[%clk 0:13:29]}  Rxe5 {[%clk 0:25:44]} 38. Rc7 {[%clk 0:10:36]}  g6 {[%clk 0:23:44]} 39. Kh2 {[%clk 0:06:50]}  Ree2 {[%clk 0:23:20]}
40. Rc5+ {[%clk 0:06:48]}  Ke4 {[%clk 0:22:31]} 41. Rc4+ {[%clk 0:06:29]}  Kd3 {[%clk 0:22:28]} 42. Rc6 {[%clk 0:05:06]}  Rxg2+ {[%clk 0:22:09]}
43. Kh3 {[%clk 0:05:34]}  f5 {[%clk 0:19:05]} 44. Bc7 {[%clk 0:05:43]}  Rg4 {[%clk 0:17:03]} 45. Rf6 {[%clk 0:02:38]}  Ke4 {[%clk 0:16:23]}
46. Rb6 {[%clk 0:01:32]}  Rc2 {[%clk 0:16:29]} 47. Rb3 {[%clk 0:29:43]}  f4 {[%clk 0:46:55]} 48. c4 {[%clk 0:30:09]}  Rxc4 {[%clk 0:47:13]}
49. Bd8 {[%clk 0:29:33]}  Rd4 {[%clk 0:47:38]} 50. Rb8 {[%clk 0:29:38]}  Rg3+ {[%clk 0:47:53]} 51. Kh2 {[%clk 0:30:06]}  Rd2+ {[%clk 0:48:19]}
52. Kh1 {[%clk 0:30:34]}  Rh3+ {[%clk 0:48:30]} 53. Kg1 {[%clk 0:31:02]}  Rc3 {[%clk 0:48:56]} 54. Rb1 {[%clk 0:31:18]}  Ke5 {[%clk 0:47:39]} 0-1

[Event "2026 European Womens Championship"]
[Site "Batumi, GE"]
[Date "2026.05.26"]
[Round "2"]
[White "Danielian, Elina"]
[Black "Jimenez Fernandez, Rebeca"]
[Result "1-0"]
[Board "37"]
[TimeControl "5400+30"]
[WhiteFideId "13300210"]
[BlackFideId "32070934"]
[WhiteElo "2390"]
[BlackElo "2166"]
[WhiteTitle "GM"]
[BlackTitle "WFM"]
[WhiteClock "0:22:16"]
[BlackClock "0:08:12"]
[Variant "Standard"]

1. d4 {[%clk 1:30:57]}  d5 {[%clk 1:30:53]} 2. c4 {[%clk 1:31:10]}  e6 {[%clk 1:31:19]} 3. Nc3 {[%clk 1:30:50]}  Nf6 {[%clk 1:31:43]}
4. cxd5 {[%clk 1:30:50]}  exd5 {[%clk 1:32:08]} 5. Bg5 {[%clk 1:31:16]}  c6 {[%clk 1:32:20]} 6. e3 {[%clk 1:31:37]}  Be7 {[%clk 1:32:42]}
7. Bd3 {[%clk 1:32:01]}  Nbd7 {[%clk 1:33:03]} 8. Nge2 {[%clk 1:32:02]}  Nf8 {[%clk 1:33:24]} 9. Qc2 {[%clk 1:30:03]}  Ne6 {[%clk 1:31:40]}
10. Bh4 {[%clk 1:29:37]}  g6 {[%clk 1:30:07]} 11. O-O {[%clk 1:26:50]}  O-O {[%clk 1:29:54]} 12. Rad1 {[%clk 1:21:25]}  Nh5 {[%clk 1:18:11]}
13. Bxe7 {[%clk 1:20:51]}  Qxe7 {[%clk 1:18:36]} 14. Rb1 {[%clk 1:16:21]}  a5 {[%clk 1:14:33]} 15. a3 {[%clk 1:16:39]}  Nf6 {[%clk 1:13:35]}
16. Rfe1 {[%clk 1:05:00]}  Ng7 {[%clk 1:09:37]} 17. Ng3 {[%clk 1:04:09]}  h5 {[%clk 1:05:29]} 18. f3 {[%clk 0:59:25]}  c5 {[%clk 0:47:40]}
19. dxc5 {[%clk 0:56:33]}  h4 {[%clk 0:46:53]} 20. Nf1 {[%clk 0:56:21]}  Qxc5 {[%clk 0:47:19]} 21. Qf2 {[%clk 0:51:26]}  Bf5 {[%clk 0:46:21]}
22. Rbd1 {[%clk 0:53:40]}  Bxd3 {[%clk 0:45:56]} 23. Rxd3 {[%clk 0:54:06]}  Nf5 {[%clk 0:44:08]} 24. Red1 {[%clk 0:54:20]}  Rad8 {[%clk 0:42:34]}
25. e4 {[%clk 0:53:20]}  Qxf2+ {[%clk 0:38:37]} 26. Kxf2 {[%clk 0:53:46]}  Ne7 {[%clk 0:38:30]} 27. Ne3 {[%clk 0:52:23]}  d4 {[%clk 0:34:35]}
28. Rxd4 {[%clk 0:52:44]}  Rxd4 {[%clk 0:34:58]} 29. Rxd4 {[%clk 0:53:12]}  Nc6 {[%clk 0:34:23]} 30. Rd6 {[%clk 0:52:30]}  Kg7 {[%clk 0:34:27]}
31. f4 {[%clk 0:49:39]}  Rd8 {[%clk 0:33:40]} 32. Rxd8 {[%clk 0:50:01]}  Nxd8 {[%clk 0:34:04]} 33. e5 {[%clk 0:47:04]}  Nd7 {[%clk 0:32:01]}
34. Nc4 {[%clk 0:46:50]}  Nc6 {[%clk 0:25:37]} 35. Ke3 {[%clk 0:38:31]}  Kf8 {[%clk 0:15:36]} 36. Nd6 {[%clk 0:37:52]}  b6 {[%clk 0:12:43]}
37. Nc4 {[%clk 0:33:50]}  Ne7 {[%clk 0:09:25]} 38. b4 {[%clk 0:32:40]}  axb4 {[%clk 0:09:18]} 39. axb4 {[%clk 0:33:08]}  b5 {[%clk 0:03:14]}
40. Nd6 {[%clk 0:32:58]}  Nb8 {[%clk 0:03:18]} 41. Ndxb5 {[%clk 0:15:11]}  Na6 {[%clk 0:02:25]} 42. Na2 {[%clk 0:15:20]}  Nd5+ {[%clk 0:02:22]}
43. Ke4 {[%clk 0:13:54]}  Ndxb4 {[%clk 0:01:13]} 44. Nxb4 {[%clk 0:14:14]}  Nxb4 {[%clk 0:01:37]} 45. Nd4 {[%clk 0:14:41]}  f5+ {[%clk 0:20:32]}
46. exf6 {[%clk 0:42:49]}  Kf7 {[%clk 0:20:57]} 47. Nf3 {[%clk 0:42:51]}  Kxf6 {[%clk 0:19:28]} 48. Nxh4 {[%clk 0:40:33]}  Na6 {[%clk 0:18:19]}
49. g4 {[%clk 0:38:55]}  Nc5+ {[%clk 0:16:52]} 50. Kd5 {[%clk 0:35:40]}  Nd3 {[%clk 0:16:54]} 51. g5+ {[%clk 0:35:41]}  Kf7 {[%clk 0:17:08]}
52. Ke4 {[%clk 0:35:51]}  Nc5+ {[%clk 0:16:13]} 53. Kd4 {[%clk 0:35:51]}  Ne6+ {[%clk 0:15:08]} 54. Ke5 {[%clk 0:36:15]}  Ng7 {[%clk 0:14:15]}
55. f5 {[%clk 0:26:04]}  gxf5 {[%clk 0:14:33]} 56. g6+ {[%clk 0:26:11]}  Kg8 {[%clk 0:12:21]} 57. Nxf5 {[%clk 0:26:34]}  Nh5 {[%clk 0:12:44]}
58. Ng3 {[%clk 0:25:30]}  Ng7 {[%clk 0:12:44]} 59. h4 {[%clk 0:25:44]}  Ne8 {[%clk 0:09:00]} 60. h5 {[%clk 0:22:49]}  Kg7 {[%clk 0:08:13]}
61. Nf5+ {[%clk 0:22:56]}  Kh8 {[%clk 0:08:15]} 62. h6 {[%clk 0:22:44]}  Kg8 {[%clk 0:08:40]} 63. Nd6 {[%clk 0:22:12]}  Nc7 {[%clk 0:08:12]}
64. Nf7 {[%clk 0:22:16]} 1-0

[Event "2026 European Womens Championship"]
[Site "Batumi, GE"]
[Date "2026.05.26"]
[Round "2"]
[White "Mamedjarova, Zeinab"]
[Black "Maltsevskaya, Aleksandra"]
[Result "1/2-1/2"]
[Board "38"]
[TimeControl "5400+30"]
[WhiteFideId "13401521"]
[BlackFideId "24174041"]
[WhiteElo "2137"]
[BlackElo "2390"]
[WhiteTitle "WGM"]
[BlackTitle "IM"]
[WhiteClock "0:00:35"]
[BlackClock "0:08:18"]
[Variant "Standard"]

1. d4 {[%clk 1:30:56]}  Nf6 {[%clk 1:30:44]} 2. Bg5 {[%clk 1:31:20]}  e6 {[%clk 1:30:50]} 3. e3 {[%clk 1:31:34]}  h6 {[%clk 1:30:43]}
4. Bf4 {[%clk 1:30:54]}  b6 {[%clk 1:28:34]} 5. c4 {[%clk 1:29:54]}  Bb7 {[%clk 1:28:55]} 6. Nc3 {[%clk 1:29:24]}  Bb4 {[%clk 1:26:26]}
7. a3 {[%clk 1:26:25]}  Bxc3+ {[%clk 1:26:46]} 8. bxc3 {[%clk 1:26:53]}  d6 {[%clk 1:26:58]} 9. h3 {[%clk 1:25:27]}  O-O {[%clk 1:25:10]}
10. Nf3 {[%clk 1:25:38]}  Qe7 {[%clk 1:25:31]} 11. Be2 {[%clk 1:25:08]}  Rd8 {[%clk 1:25:03]} 12. O-O {[%clk 1:24:10]}  c5 {[%clk 1:25:06]}
13. Qc2 {[%clk 1:09:31]}  Nc6 {[%clk 1:24:14]} 14. Rfd1 {[%clk 0:56:18]}  Rac8 {[%clk 1:20:31]} 15. Rac1 {[%clk 0:25:12]}  d5 {[%clk 1:14:39]}
16. Qb2 {[%clk 0:19:16]}  dxc4 {[%clk 1:03:03]} 17. Bxc4 {[%clk 0:19:19]}  Na5 {[%clk 1:03:24]} 18. Be2 {[%clk 0:19:01]}  Bd5 {[%clk 0:48:09]}
19. Ba6 {[%clk 0:14:06]}  Bb7 {[%clk 0:46:15]} 20. Be2 {[%clk 0:14:18]}  Ne4 {[%clk 0:39:53]} 21. Ne5 {[%clk 0:13:28]}  Nd6 {[%clk 0:33:20]}
22. Bd3 {[%clk 0:09:32]}  Qe8 {[%clk 0:25:01]} 23. Qe2 {[%clk 0:08:31]}  f5 {[%clk 0:24:24]} 24. h4 {[%clk 0:06:36]}  Ne4 {[%clk 0:21:58]}
25. f3 {[%clk 0:05:24]}  Nf6 {[%clk 0:21:57]} 26. g4 {[%clk 0:04:42]}  cxd4 {[%clk 0:18:40]} 27. cxd4 {[%clk 0:03:46]}  Rxc1 {[%clk 0:05:32]}
28. Rxc1 {[%clk 0:04:14]}  Nd5 {[%clk 0:05:53]} 29. gxf5 {[%clk 0:03:48]}  Nb3 {[%clk 0:05:51]} 30. Rc4 {[%clk 0:00:40]}  b5 {[%clk 0:01:42]}
31. f6 {[%clk 0:00:57]}  bxc4 {[%clk 0:00:39]} 32. f7+ {[%clk 0:01:10]}  Qxf7 {[%clk 0:01:03]} 33. Nxf7 {[%clk 0:01:12]}  Nc1 {[%clk 0:01:28]}
34. Qb2 {[%clk 0:00:39]}  Nxd3 {[%clk 0:00:36]} 35. Qxb7 {[%clk 0:01:08]}  c3 {[%clk 0:00:42]} 36. Nxd8 {[%clk 0:00:41]}  c2 {[%clk 0:00:40]}
37. Qf7+ {[%clk 0:00:38]}  Kh7 {[%clk 0:00:46]} 38. Nxe6 {[%clk 0:00:32]}  c1=Q+ {[%clk 0:01:09]} 39. Kh2 {[%clk 0:00:49]}  Qd2+ {[%clk 0:00:32]}
40. Kh3 {[%clk 0:00:43]}  Nf2+ {[%clk 0:00:37]} 41. Kg3 {[%clk 0:28:18]}  Nh1+ {[%clk 0:28:53]} 42. Kg4 {[%clk 0:21:20]}  Nf6+ {[%clk 0:21:03]}
43. Kf5 {[%clk 0:18:03]}  Qd3+ {[%clk 0:21:27]} 44. Ke5 {[%clk 0:12:52]}  Qb5+ {[%clk 0:21:50]} 45. Kd6 {[%clk 0:05:55]}  Qa6+ {[%clk 0:11:24]}
46. Kc7 {[%clk 0:03:26]}  Qb6+ {[%clk 0:11:27]} 47. Kc8 {[%clk 0:03:44]}  Qc6+ {[%clk 0:11:51]} 48. Kb8 {[%clk 0:02:52]}  Qb5+ {[%clk 0:07:26]}
49. Kxa7 {[%clk 0:02:41]}  Qa5+ {[%clk 0:07:13]} 50. Kb8 {[%clk 0:02:48]}  Qb6+ {[%clk 0:07:17]} 51. Kc8 {[%clk 0:02:55]}  Qa6+ {[%clk 0:07:32]}
52. Kb8 {[%clk 0:00:56]}  Qb6+ {[%clk 0:07:55]} 53. Kc8 {[%clk 0:00:57]}  Qa6+ {[%clk 0:08:18]} 54. Kb8 {[%clk 0:00:35]} 1/2-1/2

[Event "2026 European Womens Championship"]
[Site "Batumi, GE"]
[Date "2026.05.26"]
[Round "2"]
[White "Roebers, Eline"]
[Black "Khachatryan, Anna"]
[Result "1-0"]
[Board "39"]
[TimeControl "5400+30"]
[WhiteFideId "1058401"]
[BlackFideId "13310780"]
[WhiteElo "2389"]
[BlackElo "2154"]
[WhiteTitle "IM"]
[BlackTitle "WFM"]
[WhiteClock "0:20:14"]
[BlackClock "0:01:08"]
[Variant "Standard"]

1. e4 {[%clk 1:30:58]}  c5 {[%clk 1:30:52]} 2. Nf3 {[%clk 1:30:55]}  e6 {[%clk 1:31:09]} 3. d4 {[%clk 1:31:21]}  cxd4 {[%clk 1:31:34]}
4. Nxd4 {[%clk 1:31:47]}  Nc6 {[%clk 1:31:59]} 5. Nc3 {[%clk 1:32:14]}  Qc7 {[%clk 1:32:12]} 6. Be3 {[%clk 1:32:36]}  a6 {[%clk 1:32:27]}
7. a3 {[%clk 1:33:01]}  Nf6 {[%clk 1:30:15]} 8. f4 {[%clk 1:33:17]}  d6 {[%clk 1:26:54]} 9. Qf3 {[%clk 1:33:39]}  Be7 {[%clk 1:26:27]}
10. O-O-O {[%clk 1:31:44]}  h5 {[%clk 1:06:06]} 11. h3 {[%clk 1:27:33]}  Bd7 {[%clk 0:58:46]} 12. Be2 {[%clk 1:20:44]}  Nxd4 {[%clk 0:56:20]}
13. Bxd4 {[%clk 1:21:04]}  Bc6 {[%clk 0:56:41]} 14. Qe3 {[%clk 1:18:37]}  Nd7 {[%clk 0:48:35]} 15. Qg3 {[%clk 1:12:36]}  Bf6 {[%clk 0:41:42]}
16. Bxf6 {[%clk 1:07:02]}  gxf6 {[%clk 0:40:26]} 17. Rd4 {[%clk 1:03:58]}  h4 {[%clk 0:29:36]} 18. Qe3 {[%clk 1:00:37]}  O-O-O {[%clk 0:32:32]}
19. Rhd1 {[%clk 1:00:38]}  Nf8 {[%clk 0:21:03]} 20. Rc4 {[%clk 0:58:35]}  Nd7 {[%clk 0:14:46]} 21. a4 {[%clk 0:42:44]}  Kb8 {[%clk 0:08:25]}
22. Qd4 {[%clk 0:35:30]}  Rhg8 {[%clk 0:05:56]} 23. Bf3 {[%clk 0:35:35]}  e5 {[%clk 0:03:42]} 24. Qf2 {[%clk 0:32:39]}  Nc5 {[%clk 0:03:19]}
25. Nd5 {[%clk 0:28:47]}  Bxd5 {[%clk 0:03:37]} 26. exd5 {[%clk 0:29:05]}  b5 {[%clk 0:00:55]} 27. axb5 {[%clk 0:28:01]}  axb5 {[%clk 0:01:24]}
28. Rc3 {[%clk 0:27:54]}  Qa7 {[%clk 0:00:57]} 29. Kb1 {[%clk 0:27:49]}  b4 {[%clk 0:00:43]} 30. Rc4 {[%clk 0:26:49]}  Kc7 {[%clk 0:01:12]}
31. fxe5 {[%clk 0:22:29]}  Ra8 {[%clk 0:01:24]} 32. Kc1 {[%clk 0:22:50]}  Kd8 {[%clk 0:00:39]} 33. Qxh4 {[%clk 0:21:30]}  Qa1+ {[%clk 0:00:42]}
34. Kd2 {[%clk 0:21:55]}  Qxb2 {[%clk 0:00:40]} 35. Qxf6+ {[%clk 0:20:52]}  Ke8 {[%clk 0:01:08]} 36. Re1 {[%clk 0:20:14]} 1-0

[Event "2026 European Womens Championship"]
[Site "Batumi, GE"]
[Date "2026.05.26"]
[Round "2"]
[White "Huseynova, Lala"]
[Black "Efroimski, Marsel"]
[Result "1/2-1/2"]
[Board "40"]
[TimeControl "5400+30"]
[WhiteFideId "13431781"]
[BlackFideId "2810964"]
[WhiteElo "2149"]
[BlackElo "2386"]
[WhiteTitle "WFM"]
[BlackTitle "IM"]
[WhiteClock "0:01:54"]
[BlackClock "0:02:45"]
[Variant "Standard"]

1. e4 {[%clk 1:30:57]}  e5 {[%clk 1:28:26]} 2. Nf3 {[%clk 1:31:09]}  Nc6 {[%clk 1:28:53]} 3. Bb5 {[%clk 1:31:20]}  a6 {[%clk 1:29:19]}
4. Ba4 {[%clk 1:31:40]}  Nf6 {[%clk 1:29:46]} 5. O-O {[%clk 1:31:51]}  Be7 {[%clk 1:30:14]} 6. Re1 {[%clk 1:29:54]}  b5 {[%clk 1:30:26]}
7. Bb3 {[%clk 1:30:20]}  O-O {[%clk 1:30:52]} 8. c3 {[%clk 1:29:40]}  d5 {[%clk 1:31:14]} 9. exd5 {[%clk 1:29:38]}  Nxd5 {[%clk 1:31:42]}
10. Nxe5 {[%clk 1:29:31]}  Nxe5 {[%clk 1:32:08]} 11. Rxe5 {[%clk 1:29:53]}  c6 {[%clk 1:32:34]} 12. d3 {[%clk 1:28:30]}  Bd6 {[%clk 1:32:34]}
13. Re1 {[%clk 1:28:46]}  Qh4 {[%clk 1:32:58]} 14. g3 {[%clk 1:27:39]}  Qh3 {[%clk 1:33:23]} 15. Re4 {[%clk 1:27:41]}  Nf6 {[%clk 1:33:38]}
16. Rh4 {[%clk 1:25:18]}  Qf5 {[%clk 1:33:57]} 17. Bc2 {[%clk 1:12:33]}  Qg6 {[%clk 1:34:17]} 18. Nd2 {[%clk 1:01:10]}  Bg4 {[%clk 1:33:53]}
19. Nf3 {[%clk 0:51:43]}  Nh5 {[%clk 0:52:47]} 20. h3 {[%clk 0:37:35]}  Bf5 {[%clk 0:33:08]} 21. Ne5 {[%clk 0:32:45]}  Bxe5 {[%clk 0:32:46]}
22. Rxh5 {[%clk 0:32:43]}  Bc7 {[%clk 0:14:47]} 23. Qf3 {[%clk 0:23:31]}  Bd7 {[%clk 0:14:46]} 24. Rg5 {[%clk 0:17:22]}  Qe6 {[%clk 0:14:34]}
25. d4 {[%clk 0:16:16]}  g6 {[%clk 0:11:08]} 26. h4 {[%clk 0:12:54]}  Qe1+ {[%clk 0:04:50]} 27. Kg2 {[%clk 0:12:31]}  f6 {[%clk 0:04:22]}
28. Rc5 {[%clk 0:11:23]}  Bb6 {[%clk 0:03:53]} 29. Rxc6 {[%clk 0:08:53]}  Bxc6 {[%clk 0:04:19]} 30. Qxc6 {[%clk 0:09:21]}  Rab8 {[%clk 0:01:30]}
31. Bb3+ {[%clk 0:05:38]}  Kh8 {[%clk 0:01:55]} 32. Bf4 {[%clk 0:05:31]}  Qxa1 {[%clk 0:00:42]} 33. Bxb8 {[%clk 0:05:56]}  Qe1 {[%clk 0:00:38]}
34. Qxb6 {[%clk 0:05:20]}  Qe4+ {[%clk 0:01:02]} 35. Kh2 {[%clk 0:04:56]}  Qe2 {[%clk 0:01:04]} 36. d5 {[%clk 0:04:48]}  g5 {[%clk 0:01:28]}
37. hxg5 {[%clk 0:04:15]}  Kg7 {[%clk 0:01:55]} 38. Bf4 {[%clk 0:02:22]}  fxg5 {[%clk 0:02:09]} 39. Qc7+ {[%clk 0:01:26]}  Kg6 {[%clk 0:01:28]}
40. Be3 {[%clk 0:00:38]}  Rxf2+ {[%clk 0:01:31]} 41. Bxf2 {[%clk 0:01:01]}  Qxf2+ {[%clk 0:01:56]} 42. Kh1 {[%clk 0:01:24]}  Qf1+ {[%clk 0:02:22]}
43. Kh2 {[%clk 0:01:54]}  Qf2+ {[%clk 0:02:45]} 1/2-1/2

[Event "2026 European Womens Championship"]
[Site "Batumi, GE"]
[Date "2026.05.26"]
[Round "2"]
[White "Atalik, Ekaterina"]
[Black "Mgeladze, Kesaria"]
[Result "1/2-1/2"]
[Board "41"]
[TimeControl "5400+30"]
[WhiteFideId "4130189"]
[BlackFideId "13621130"]
[WhiteElo "2372"]
[BlackElo "2147"]
[WhiteTitle "IM"]
[BlackTitle "WIM"]
[WhiteClock "0:06:25"]
[BlackClock "0:02:54"]
[Variant "Standard"]

1. d4 {[%clk 1:30:56]}  Nf6 {[%clk 1:30:54]} 2. c4 {[%clk 1:31:16]}  e6 {[%clk 1:31:18]} 3. Nc3 {[%clk 1:31:27]}  Bb4 {[%clk 1:31:36]}
4. e3 {[%clk 1:31:37]}  O-O {[%clk 1:31:37]} 5. Bd2 {[%clk 1:31:26]}  d5 {[%clk 1:30:13]} 6. Nf3 {[%clk 1:31:01]}  b6 {[%clk 1:24:29]}
7. cxd5 {[%clk 1:30:30]}  exd5 {[%clk 1:24:41]} 8. Bd3 {[%clk 1:30:32]}  Bd6 {[%clk 1:22:09]} 9. O-O {[%clk 1:28:36]}  Bb7 {[%clk 1:13:54]}
10. Re1 {[%clk 1:26:47]}  Nbd7 {[%clk 1:08:17]} 11. Qc2 {[%clk 1:10:32]}  c5 {[%clk 1:01:30]} 12. Rad1 {[%clk 1:03:39]}  Rc8 {[%clk 0:58:07]}
13. Bf5 {[%clk 1:00:27]}  g6 {[%clk 0:50:07]} 14. Bh3 {[%clk 0:59:46]}  c4 {[%clk 0:37:55]} 15. Ne5 {[%clk 0:54:20]}  Bxe5 {[%clk 0:31:59]}
16. dxe5 {[%clk 0:54:45]}  Nxe5 {[%clk 0:32:20]} 17. Bxc8 {[%clk 0:54:52]}  Qxc8 {[%clk 0:32:13]} 18. Bc1 {[%clk 0:48:26]}  Nd3 {[%clk 0:19:06]}
19. Rf1 {[%clk 0:46:35]}  d4 {[%clk 0:15:06]} 20. Ne2 {[%clk 0:44:25]}  Nb4 {[%clk 0:09:41]} 21. Qd2 {[%clk 0:39:51]}  d3 {[%clk 0:09:52]}
22. Ng3 {[%clk 0:36:04]}  Qc6 {[%clk 0:08:48]} 23. f3 {[%clk 0:36:04]}  Nxa2 {[%clk 0:09:12]} 24. e4 {[%clk 0:34:10]}  b5 {[%clk 0:08:28]}
25. b3 {[%clk 0:30:34]}  Nxc1 {[%clk 0:07:34]} 26. Rxc1 {[%clk 0:30:57]}  Nd7 {[%clk 0:06:18]} 27. bxc4 {[%clk 0:29:53]}  bxc4 {[%clk 0:06:44]}
28. Rfe1 {[%clk 0:28:17]}  Nb6 {[%clk 0:06:41]} 29. e5 {[%clk 0:22:57]}  Rd8 {[%clk 0:05:35]} 30. Ne4 {[%clk 0:21:13]}  Nd5 {[%clk 0:03:47]}
31. Qh6 {[%clk 0:16:16]}  f6 {[%clk 0:03:27]} 32. exf6 {[%clk 0:13:07]}  Nxf6 {[%clk 0:03:53]} 33. Nxf6+ {[%clk 0:11:18]}  Qxf6 {[%clk 0:04:19]}
34. Qd2 {[%clk 0:10:06]}  Ba6 {[%clk 0:04:31]} 35. Kh1 {[%clk 0:09:02]}  Bb5 {[%clk 0:04:20]} 36. Re4 {[%clk 0:09:01]}  a6 {[%clk 0:03:40]}
37. h4 {[%clk 0:08:05]}  Rc8 {[%clk 0:03:06]} 38. Rc3 {[%clk 0:07:16]}  Rd8 {[%clk 0:03:24]} 39. Rc1 {[%clk 0:06:53]}  Rc8 {[%clk 0:03:20]}
40. Rc3 {[%clk 0:06:25]}  Rd8 {[%clk 0:02:54]} 1/2-1/2